bitfinex-derivatives/quotes_ETHF0:USTF0_20260207
["timestamp","ask_amount","ask_price","bid_price","bid_amount"]
[1770506196494,0.54817746,2084.0,2082.5,0.5402014]
[1770506198302,0.55242118,2084.2,2082.5,0.5402014]
[1770506199595,0.55242118,2084.2,2082.6,0.54048553]
[1770506200497,42.48394233,2085.1,2082.6,0.54048553]
[1770506200498,0.54817746,2084.8,2083.3,0.54048553]
[1770506200995,0.54817746,2084.8,2083.3,0.24016]
[1770506201196,0.54817746,2084.8,2083.4,0.54048553]
[1770506201402,0.55410213,2084.8,2083.4,0.54048553]
[1770506204800,0.00592467,2084.8,2083.4,0.78063553]
[1770506205005,0.55410213,2084.8,2083.5,0.54048553]
[1770506207003,0.55410213,2084.8,2083.6,0.54048553]
[1770506210710,0.54817746,2084.7,2083.2,0.54048553]
[1770506211309,0.54817746,2084.6,2083.2,0.54048553]
[1770506212311,0.54817746,2084.5,2083.2,0.54048553]
[1770506213412,0.54817746,2084.3,2083.2,0.54048553]
[1770506218110,0.54817746,2084.1,2082.8,0.54048553]
[1770506218317,0.54817746,2084.0,2082.8,0.54048553]
[1770506220416,0.54817746,2084.0,2082.7,0.54048553]
[1770506220417,0.54817746,2083.9,2082.7,0.54048553]
[1770506220616,0.54817746,2083.8,2082.7,0.54048553]
[1770506224717,0.54817746,2083.8,2082.5,0.00579832]
[1770506225017,0.54817746,2083.3,2082.5,0.54628385]
[1770506225226,0.00621778,2083.3,2082.5,0.54628385]
[1770506225518,0.54817746,2083.5,2082.5,0.54628385]
[1770506225821,0.57423798,2083.9,2082.6,0.53820443]
[1770506226412,0.57423798,2083.9,2082.7,0.53820443]
[1770506226613,0.57931981,2083.9,2082.7,0.53820443]
[1770506235225,0.57931981,2083.9,2082.8,0.57312891]
[1770506235526,0.57931981,2083.9,2082.9,0.57312891]
[1770506236321,0.57931981,2083.9,2083.0,0.57312891]
[1770506236526,0.52586418,2084.3,2083.2,0.57312891]
[1770506236726,0.52586418,2084.3,2083.4,0.57312891]
[1770506237122,0.52586418,2084.6,2083.4,0.57312891]
[1770506237322,0.52586418,2084.6,2083.5,0.57312891]
[1770506237519,0.5302055,2084.6,2083.5,0.57312891]
[1770506238423,0.5302055,2084.6,2083.6,0.57312891]
[1770506238824,0.00434132,2084.6,2083.8,0.57312891]
[1770506239127,0.52586418,2085.0,2084.0,0.57312891]
[1770506239918,0.53107286,2085.0,2084.0,0.57717306]
[1770506240519,0.00520868,2085.0,2084.1,0.57312891]
[1770506240728,0.00520868,2085.0,2084.2,0.57312891]
[1770506240918,0.53107286,2085.0,2084.2,0.57312891]
[1770506241729,0.53107286,2085.0,2084.1,0.57312891]
[1770506242528,0.53107286,2085.0,2084.0,0.00404415]
[1770506242931,0.52586418,2084.8,2084.0,0.00404415]
[1770506244930,0.52586418,2084.8,2083.5,0.57312891]
[1770506245134,0.52586418,2084.6,2083.5,0.57312891]
[1770506245337,0.52586418,2084.5,2083.2,0.57312891]
[1770506245536,0.52586418,2084.4,2083.2,0.57312891]
[1770506245935,0.52586418,2084.4,2083.2,0.57698623]
[1770506246544,0.52586418,2084.3,2083.2,0.00385732]
[1770506247233,3.35273937,2084.3,2083.2,0.00385732]
[1770506247434,3.35273937,2084.2,2083.2,0.00385732]
[1770506247630,0.52586418,2084.1,2083.2,0.00385732]
[1770506248434,0.52586418,2084.1,2083.2,0.57698623]
[1770506248736,0.52586418,2084.1,2083.2,0.00385732]
[1770506249142,0.52586418,2084.1,2083.2,0.57698623]
[1770506250445,3.35273937,2084.1,2083.2,0.00385732]
[1770506250639,0.52586418,2084.0,2083.2,0.00385732]
[1770506251334,0.52586418,2084.0,2083.2,0.57698623]
[1770506251535,0.52586418,2084.0,2083.2,0.00385732]
[1770506251934,0.52586418,2084.0,2083.2,0.57698623]
[1770506253045,0.52586418,2084.0,2083.2,0.00385732]
[1770506253646,0.52586418,2083.9,2082.9,0.57312891]
[1770506254045,0.52586418,2083.8,2082.7,0.57312891]
[1770506254245,0.52586418,2083.7,2082.5,0.57312891]
[1770506254744,0.52586418,2083.5,2082.5,0.00516011]
[1770506254947,0.52972478,2083.5,2082.5,0.00516011]
[1770506255744,0.52972478,2083.5,2082.5,0.57671685]
[1770506256048,0.52972478,2083.5,2082.5,0.00516011]
[1770506256249,0.52972478,2083.5,2082.5,0.57671685]
[1770506259549,0.52972478,2083.5,2082.5,0.00516011]
[1770506264148,0.54717022,2083.3,2082.1,0.57155674]
[1770506264349,0.54717022,2083.2,2081.5,0.57155674]
[1770506264550,0.54717022,2083.1,2081.5,0.57155674]
[1770506265142,0.54717022,2083.1,2081.5,0.57497309]
[1770506266751,0.54717022,2083.1,2081.6,0.57155674]
[1770506268955,0.54717022,2083.1,2081.7,0.57155674]
[1770506269262,0.54717022,2083.1,2081.8,0.57155674]
[1770506271160,0.54717022,2083.4,2081.9,0.57155674]
[1770506271352,0.54717022,2083.4,2082.0,0.57155674]
[1770506272359,0.54717022,2083.4,2082.1,0.57155674]
[1770506273461,0.54717022,2083.4,2082.2,0.57155674]
[1770506274363,0.54717022,2083.4,2082.3,0.57155674]
[1770506276365,0.54717022,2083.4,2082.2,0.57155674]
[1770506276366,0.54717022,2083.2,2082.2,0.57155674]
[1770506276565,0.54717022,2083.1,2082.2,0.57155674]
[1770506282372,0.54717022,2083.0,2082.2,0.57155674]
[1770506284571,2.81751234,2083.1,2082.2,0.57155674]
[1770506284874,3.36468256,2083.4,2082.6,0.57155674]
[1770506285176,0.54717022,2083.4,2082.6,0.57155674]
[1770506285676,2.82137294,2083.5,2082.8,0.56964873]
[1770506285677,0.54505112,2083.5,2082.8,0.56964873]
[1770506287376,0.0038606,2083.5,2082.8,0.56964873]
[1770506288277,0.54505112,2083.5,2082.8,0.56964873]
[1770506288578,0.0038606,2083.5,2082.8,0.56964873]
[1770506289277,0.54505112,2083.5,2082.7,2.85550873]
[1770506289479,0.54505112,2083.5,2082.7,0.56964873]
[1770506289878,0.0038606,2083.5,2082.7,0.56964873]
[1770506290071,0.0038606,2083.5,2082.8,0.56964873]
[1770506290978,0.0038606,2083.5,2082.8,3.42515746]
[1770506291179,0.0038606,2083.5,2082.9,0.56964873]
[1770506291681,0.54505112,2083.5,2082.9,0.56964873]
[1770506292976,0.54505112,2083.5,2082.7,0.53870949]
[1770506293181,0.54505112,2083.5,2082.6,0.53870949]
[1770506293371,0.54505112,2083.5,2082.4,3.39421822]
[1770506293570,0.54505112,2083.5,2082.4,0.53870949]
[1770506293770,0.5286345,2083.4,2082.4,0.53870949]
[1770506295179,0.5286345,2083.3,2082.4,0.53870949]
[1770506297479,0.5286345,2083.2,2082.3,0.53870949]
[1770506298383,0.5286345,2083.1,2082.3,0.53870949]
[1770506300282,2.81751234,2083.3,2082.3,0.53870949]
[1770506300475,0.5286345,2083.4,2082.5,0.53870949]
[1770506302775,2.82137294,2083.5,2082.5,0.53870949]
[1770506302980,0.0038606,2083.5,2082.6,3.39421822]
[1770506303179,0.5324951,2083.5,2082.7,0.53870949]
[1770506307782,0.0038606,2083.5,2082.7,3.39421822]
[1770506307980,0.0038606,2083.5,2082.8,0.53870949]
[1770506310990,0.5324951,2083.5,2082.7,2.85550873]
[1770506311286,0.5324951,2083.5,2082.7,0.53870949]
[1770506313289,0.5286345,2083.4,2082.7,0.53870949]
[1770506317387,0.56394972,2083.3,2082.5,3.39292755]
[1770506317690,0.56394972,2083.3,2082.6,0.53741882]
[1770506318192,0.56394972,2083.2,2082.4,0.53741882]
[1770506319395,0.56394972,2083.1,2082.4,0.53741882]
[1770506321395,0.56394972,2083.0,2082.4,0.53741882]
[1770506324694,0.56394972,2082.8,2082.3,3.39292755]
[1770506324894,0.56394972,2082.8,2082.3,0.53741882]
[1770506326795,0.56394972,2082.7,2082.2,0.53741882]
[1770506327000,0.56394972,2082.5,2081.9,3.39292755]
[1770506327695,0.56394972,2082.5,2082.0,0.53741882]
[1770506333405,0.56394972,2082.9,2082.0,0.53741882]
[1770506333608,0.56394972,2083.0,2082.0,0.53741882]
[1770506336210,0.56394972,2082.8,2082.0,0.53741882]
[1770506339108,0.56394972,2082.7,2082.0,0.53741882]
[1770506342217,0.56394972,2082.7,2081.8,0.53741882]
[1770506344812,0.56394972,2082.7,2081.7,3.39292755]
[1770506345012,0.56394972,2082.4,2081.7,0.53741882]
[1770506346416,0.56018173,2081.9,2081.0,0.56343253]
[1770506346614,0.56018173,2081.8,2081.0,0.56343253]
[1770506347620,0.5643969,2081.8,2080.7,0.56343253]
[1770506347909,0.56018173,2081.6,2080.6,0.56343253]
[1770506348815,0.56018173,2081.6,2080.6,0.56820796]
[1770506351324,0.5643969,2081.8,2080.6,0.56820796]
[1770506354420,0.56248228,2081.7,2080.6,0.56820796]
[1770506354621,0.56248228,2081.7,2080.4,0.57382784]
[1770506354622,0.56248228,2081.4,2080.4,0.57382784]
[1770506354818,0.56248228,2081.3,2080.4,0.57382784]
[1770506355123,0.56248228,2081.2,2080.2,0.57382784]
[1770506355823,0.56248228,2081.2,2080.2,0.57915147]
[1770506358718,0.56248228,2081.4,2080.2,0.57915147]
[1770506366930,0.56248228,2081.4,2080.2,0.00532363]
[1770506367138,0.56248228,2081.4,2080.2,0.57915147]
[1770506367343,0.56248228,2081.3,2080.2,0.57915147]
[1770506374940,0.56248228,2081.3,2080.3,0.57382784]
[1770506375348,0.56248228,2081.3,2080.4,0.57382784]
[1770506376241,0.56248228,2081.3,2080.2,1.75694639]
[1770506376450,2.81751234,2080.4,2079.5,0.58007803]
[1770506376638,2.81751234,2080.4,2079.5,6.64771295]
[1770506376836,2.81751234,2080.3,2079.6,0.58007803]
[1770506377044,2.81751234,2080.3,2079.7,6.64771295]
[1770506377247,2.81751234,2080.3,2079.7,0.58007803]
[1770506377547,0.00444746,2080.3,2079.7,0.58397955]
[1770506377943,2.8219598,2080.3,2079.7,0.58397955]
[1770506378347,0.00444746,2080.3,2079.7,0.58397955]
[1770506380151,0.0405897,2080.2,2079.7,0.58397955]
[1770506380755,0.0405897,2080.2,2079.5,0.56758651]
[1770506380946,0.55283697,2080.1,2079.0,0.56758651]
[1770506381147,0.55283697,2080.0,2079.0,0.56758651]
[1770506381349,0.55283697,2080.0,2079.1,6.63522143]
[1770506381547,0.55283697,2079.8,2078.9,0.56758651]
[1770506381752,0.55283697,2079.8,2078.9,0.00598677]
[1770506382054,0.55283697,2079.7,2079.0,6.06763492]
[1770506382450,0.55283697,2079.7,2079.1,0.56758651]
[1770506383752,0.55283697,2079.7,2078.9,0.57357328]
[1770506384148,0.55283697,2079.5,2078.7,0.56758651]
[1770506385149,0.55283697,2079.5,2078.7,0.57337697]
[1770506387155,0.55283697,2079.5,2078.7,0.00579046]
[1770506387355,0.55283697,2079.5,2078.7,0.57337697]
[1770506389759,0.55283697,2079.6,2078.7,0.57337697]
[1770506390058,0.55283697,2080.0,2078.7,0.57337697]
[1770506392454,0.55283697,2080.0,2078.8,0.56758651]
[1770506393864,0.55283697,2079.8,2078.8,0.56758651]
[1770506395159,0.55283697,2079.8,2078.7,0.00579046]
[1770506395361,0.55283697,2079.4,2078.4,0.56758651]
[1770506396463,0.55283697,2079.4,2078.4,0.57314853]
[1770506397157,0.55283697,2079.4,2077.2,8.50915443]
[1770506397158,0.55283697,2079.0,2078.1,0.56758651]
[1770506397956,0.55283697,2079.0,2078.1,0.57248417]
[1770506402769,0.55283697,2079.2,2078.1,0.57248417]
[1770506403872,0.55283697,2079.0,2077.5,0.56758651]
[1770506404971,0.55283697,2079.0,2077.5,0.57288352]
[1770506407072,0.55283697,2079.0,2077.6,0.53582667]
[1770506409068,3.37034931,2079.0,2077.6,0.53582667]
[1770506409273,0.53061418,2078.9,2077.6,0.53582667]
[1770506410972,0.53061418,2078.9,2077.7,0.53582667]
[1770506412475,0.5347564,2078.8,2077.7,0.53582667]
[1770506412772,0.53941732,2078.8,2077.7,0.53582667]
[1770506415577,0.00466092,2078.8,2077.7,0.53582667]
[1770506415883,0.53941732,2078.8,2077.7,0.53582667]
[1770506419877,0.5347564,2078.7,2077.7,0.53582667]
[1770506421174,0.5347564,2078.6,2077.7,0.53582667]
[1770506421376,3.35226874,2078.7,2077.7,0.53582667]
[1770506421577,0.5347564,2078.7,2077.7,0.53582667]
[1770506421876,0.5347564,2078.6,2077.7,0.53582667]
[1770506423281,0.5347564,2078.5,2077.7,0.53582667]
[1770506425175,2.83495219,2078.6,2077.7,0.53582667]
[1770506425576,3.36970859,2078.6,2077.7,0.53582667]
[1770506426681,0.5347564,2078.6,2077.8,4.87747568]
[1770506426881,2.83495219,2078.7,2077.9,0.57567484]
[1770506427083,3.37436951,2078.8,2078.0,0.57567484]
[1770506427683,0.5347564,2078.7,2078.0,0.57567484]
[1770506428386,3.37436951,2078.8,2078.0,0.57567484]
[1770506428987,0.5347564,2078.7,2078.0,0.57567484]
[1770506429288,3.37436951,2078.8,2078.0,0.57567484]
[1770506429489,0.5347564,2078.7,2078.0,0.57567484]
[1770506429782,2.83961311,2078.8,2078.0,0.57567484]
[1770506429984,0.5347564,2078.7,2078.0,0.57567484]
[1770506432078,0.5347564,2078.7,2078.1,0.57567484]
[1770506432282,3.36970859,2078.9,2078.1,0.57567484]
[1770506432887,0.5347564,2078.8,2078.1,0.57567484]
[1770506433387,0.53923584,2078.8,2078.1,0.57567484]
[1770506436391,0.53923584,2078.8,2078.2,0.56971881]
[1770506439197,0.53923584,2078.8,2078.1,0.56971881]
[1770506440692,0.00447944,2078.8,2078.1,0.56971881]
[1770506440897,0.00447944,2078.8,2078.2,0.56971881]
[1770506441194,0.54388291,2078.8,2078.2,0.56971881]
[1770506443197,0.54388291,2078.8,2078.1,0.56971881]
[1770506447395,0.53940347,2078.6,2078.1,0.56971881]
[1770506447799,0.54388291,2078.8,2078.1,0.56971881]
[1770506447999,0.00447944,2078.8,2078.2,0.56971881]
[1770506448192,0.53940347,2078.8,2078.5,0.56971881]
[1770506448498,0.53940347,2078.8,2078.2,0.56971881]
[1770506449094,0.54371815,2078.8,2078.2,0.56971881]
[1770506451905,0.53940347,2078.7,2077.9,3.45432859]
[1770506452300,0.53940347,2078.6,2077.8,2.88460978]
[1770506452503,0.53940347,2078.1,2077.5,0.00529701]
[1770506452695,0.53940347,2078.1,2077.2,0.56971881]
[1770506453097,0.53940347,2078.0,2077.2,0.56971881]
[1770506453704,0.53940347,2078.0,2077.2,0.57570944]
[1770506454905,0.53940347,2077.9,2077.0,0.56971881]
[1770506455206,0.53940347,2077.8,2077.0,0.56971881]
[1770506456004,0.53940347,2077.8,2077.0,0.57470121]
[1770506456703,0.53940347,2077.8,2077.0,0.0049824]
[1770506457310,0.53940347,2077.6,2076.7,0.56971881]
[1770506458006,0.53940347,2077.6,2076.3,0.56971881]
[1770506458404,0.53940347,2077.6,2076.3,0.57465875]
[1770506459206,0.53940347,2077.6,2076.4,0.56971881]
[1770506460803,0.53940347,2077.6,2076.3,0.00493994]
[1770506461003,0.53940347,2077.3,2076.3,0.57465875]
[1770506461203,0.54303394,2077.3,2076.3,0.57465875]
[1770506462104,0.53940347,2077.1,2075.6,0.56971881]
[1770506462303,0.53940347,2076.9,2075.4,0.6079042]
[1770506463005,0.53940347,2076.6,2075.0,0.56971881]
[1770506463308,0.53940347,2076.4,2075.0,0.56971881]
[1770506463509,0.53940347,2077.0,2075.1,0.56971881]
[1770506463707,0.53940347,2077.0,2075.4,0.56971881]
[1770506464105,0.53940347,2077.2,2075.5,0.56971881]
[1770506464608,0.53940347,2077.2,2075.5,0.57515804]
[1770506465908,0.58025609,2077.0,2075.5,0.57515804]
[1770506466099,0.58025609,2076.9,2075.5,0.57515804]
[1770506466500,0.58025609,2076.9,2075.5,0.00543923]
[1770506467004,3.41520828,2076.9,2075.5,0.00543923]
[1770506467207,0.58025609,2076.8,2075.5,0.00543923]
[1770506468203,0.58025609,2076.8,2075.5,0.53197974]
[1770506468412,0.58025609,2076.8,2075.5,0.00543923]
[1770506468607,0.58025609,2076.3,2074.5,0.52654051]
[1770506469508,0.58025609,2076.3,2074.5,0.53204478]
[1770506472609,0.56787348,2076.2,2074.5,0.53204478]
[1770506473011,0.56787348,2075.8,2074.5,0.00550427]
[1770506473210,0.57306617,2075.8,2074.5,0.00550427]
[1770506473406,0.57306617,2075.8,2074.5,0.57418905]
[1770506474313,5.37487348,2075.7,2074.5,0.00550427]
[1770506474511,0.56787348,2075.6,2074.5,0.00550427]
[1770506474815,0.56787348,2075.6,2074.5,0.57418905]
[1770506475017,0.56787348,2075.6,2074.5,0.00550427]
[1770506475409,0.56787348,2075.6,2074.5,0.57418905]
[1770506475805,0.56787348,2075.6,2074.5,0.00550427]
[1770506476511,0.56787348,2075.4,2073.9,0.56868478]
[1770506477417,0.56787348,2075.4,2073.9,0.57306073]
[1770506480115,0.56787348,2075.4,2072.7,1.390174]
[1770506480116,0.56787348,2075.0,2073.2,0.56868478]
[1770506480329,0.56787348,2074.9,2073.2,0.56868478]
[1770506481123,0.56787348,2074.9,2073.2,0.57343958]
[1770506481613,0.56787348,2074.7,2073.2,0.57343958]
[1770506481815,0.56787348,2074.5,2073.2,0.57343958]
[1770506482020,0.56787348,2074.5,2073.2,0.0047548]
[1770506482217,0.56787348,2074.5,2073.3,0.56868478]
[1770506483326,42.48394233,2075.1,2073.3,0.56868478]
[1770506483327,0.56787348,2075.1,2073.3,0.56868478]
[1770506490228,0.56787348,2075.4,2074.0,0.56868478]
[1770506492025,0.56787348,2075.6,2074.2,0.24121]
[1770506492230,0.57306617,2075.8,2074.3,0.56868478]
[1770506493335,0.56787348,2075.6,2074.3,0.56868478]
[1770506493530,0.56787348,2075.6,2073.5,5.71172876]
[1770506493531,0.56787348,2075.5,2074.1,0.56868478]
[1770506493734,0.56787348,2075.3,2073.9,0.56868478]
[1770506494236,0.56787348,2075.2,2073.9,0.56868478]
[1770506495829,3.33355407,2075.4,2073.9,0.56868478]
[1770506496032,0.54613754,2075.4,2074.0,0.57885329]
[1770506498235,0.54613754,2075.4,2074.1,0.57885329]
[1770506503552,0.54613754,2075.3,2074.1,0.57885329]
[1770506504953,0.54613754,2075.2,2074.1,0.57885329]
[1770506505753,3.33355407,2075.2,2074.1,0.57885329]
[1770506506056,0.54613754,2075.0,2073.9,0.57885329]
[1770506507156,0.54613754,2074.9,2073.9,0.57885329]
[1770506508752,0.54613754,2075.1,2073.9,0.57885329]
[1770506508951,0.54613754,2075.3,2073.9,0.57885329]
[1770506509151,0.54613754,2075.3,2073.9,4.84448558]
[1770506509358,0.54613754,2075.3,2074.0,0.57885329]
[1770506510257,0.54613754,2075.3,2074.1,0.57885329]
[1770506511354,0.54613754,2075.2,2074.1,0.57885329]
[1770506512160,0.54613754,2074.7,2073.7,0.57885329]
[1770506512349,0.54613754,2074.5,2073.7,0.57885329]
[1770506513261,0.54613754,2074.5,2073.2,5.71648356]
[1770506513262,0.54613754,2074.4,2073.5,0.57885329]
[1770506513553,0.54613754,2074.3,2073.2,0.0047548]
[1770506513754,3.33355407,2073.9,2072.8,0.57885329]
[1770506514059,0.54613754,2073.9,2072.8,0.57885329]
[1770506514668,0.54613754,2074.2,2072.9,0.57885329]
[1770506514964,0.54613754,2074.1,2072.9,0.58437364]
[1770506517462,0.54964815,2074.3,2072.9,0.58437364]
[1770506519761,0.54964815,2074.3,2073.0,0.57885329]
[1770506520564,0.00351061,2074.3,2073.3,0.57885329]
[1770506520757,0.54613754,2074.7,2073.5,0.57885329]
[1770506521866,0.00588914,2074.7,2073.5,0.57885329]
[1770506522868,0.55202668,2074.7,2073.5,0.57885329]
[1770506523765,0.00588914,2074.7,2073.5,0.57885329]
[1770506523966,0.55202668,2074.7,2073.5,0.57885329]
[1770506524168,0.55202668,2074.7,2073.6,0.57885329]
[1770506525369,0.55202668,2074.7,2073.4,0.57885329]
[1770506525570,0.55254623,2074.6,2073.4,0.57885329]
[1770506526270,0.55254623,2074.5,2073.4,0.57885329]
[1770506526678,0.55254623,2074.4,2073.0,0.56781299]
[1770506527069,0.55254623,2074.3,2073.0,0.56781299]
[1770506527375,0.55254623,2074.2,2073.0,0.56781299]
[1770506527571,3.36932509,2074.2,2072.9,0.00552035]
[1770506527774,0.55254623,2073.9,2072.9,0.57333334]
[1770506531082,0.55254623,2074.2,2072.9,0.57333334]
[1770506531378,0.55254623,2074.4,2073.0,0.56781299]
[1770506531678,0.55254623,2074.4,2073.1,0.24134]
[1770506531978,0.55254623,2074.4,2073.2,0.56781299]
[1770506532377,0.52513318,2074.6,2073.2,0.24132]
[1770506532677,5.61124723,2075.0,2073.2,0.24132]
[1770506532678,15.0,2075.8,2074.5,0.57496145]
[1770506532874,29.4616,2075.7,2075.0,0.57496145]
[1770506533074,29.456,2076.0,2075.0,0.57496145]
[1770506533480,14.4544,2075.9,2075.0,0.57496145]
[1770506533673,14.4544,2075.9,2075.0,0.58003653]
[1770506533674,0.52513318,2075.8,2075.0,0.58003653]
[1770506533872,29.97953318,2075.8,2075.0,0.58003653]
[1770506534074,14.4552,2075.7,2075.0,0.58003653]
[1770506534581,29.4552,2075.6,2075.0,0.58003653]
[1770506534781,15.0,2075.6,2075.0,0.58003653]
[1770506534981,29.456,2075.6,2075.0,0.58003653]
[1770506535679,0.52513318,2075.4,2074.8,0.57496145]
[1770506535876,14.98193318,2075.3,2074.8,0.57496145]
[1770506536076,0.52513318,2075.3,2074.6,0.57496145]
[1770506536272,0.52513318,2075.1,2074.3,0.57496145]
[1770506536477,14.98273318,2074.4,2073.7,0.57496145]
[1770506536678,0.53089916,2074.4,2073.7,0.57834824]
[1770506536878,29.4648,2074.3,2073.7,0.57834824]
[1770506537276,14.98993318,2074.2,2073.7,0.57834824]
[1770506537478,14.98993318,2074.2,2073.3,2.87123275]
[1770506537479,0.52513318,2074.1,2073.4,0.57496145]
[1770506537675,29.98993318,2074.1,2073.4,0.57496145]
[1770506537879,14.4648,2074.0,2073.4,0.57496145]
[1770506538074,14.98993318,2074.0,2073.4,0.57496145]
[1770506538282,0.52513318,2073.8,2073.2,0.57496145]
[1770506538483,0.52513318,2073.8,2073.2,0.58099971]
[1770506538781,29.98993318,2073.8,2073.2,0.58099971]
[1770506539280,14.4648,2073.7,2073.2,0.58099971]
[1770506539682,15.0,2073.6,2073.2,0.58099971]
[1770506539975,13.83876158,2073.6,2073.2,0.58099971]
[1770506540185,0.0006909,2074.4,2073.5,4.26563229]
[1770506540480,0.58131011,2074.4,2073.6,2.8654872]
[1770506540669,0.58131011,2074.4,2073.5,2.8654872]
[1770506541478,0.52513318,2076.4,2075.0,0.57496145]
[1770506541693,0.58061921,2076.7,2075.5,0.57496145]
[1770506541879,0.52513318,2077.1,2075.6,0.57496145]
[1770506542077,0.52513318,2076.9,2075.6,0.57496145]
[1770506542479,0.52513318,2076.7,2075.6,0.57889801]
[1770506542880,1.10575239,2076.6,2075.6,0.57889801]
[1770506543080,0.52513318,2076.6,2075.6,0.57889801]
[1770506543285,1.10575239,2076.5,2075.6,0.57889801]
[1770506543484,0.52513318,2076.3,2075.6,0.57889801]
[1770506543883,0.58061921,2076.2,2075.6,0.57889801]
[1770506544286,0.58061921,2076.1,2075.6,0.57889801]
[1770506544480,0.58061921,2076.2,2075.6,0.57889801]
[1770506544882,1.10575239,2076.1,2075.6,0.00393656]
[1770506545082,0.52513318,2076.1,2075.6,0.00393656]
[1770506545288,1.10575239,2076.1,2075.6,0.00393656]
[1770506545484,0.52513318,2075.6,2074.7,0.57496145]
[1770506545888,0.52513318,2075.9,2074.7,0.57496145]
[1770506546788,0.52513318,2075.9,2074.7,0.58037572]
[1770506548388,0.53513318,2075.9,2074.7,0.58037572]
[1770506548984,0.53513318,2075.9,2074.8,0.08175709]
[1770506549185,0.01,2075.9,2074.8,0.08175709]
[1770506549583,0.00396788,2076.9,2075.1,0.08175709]
[1770506549781,0.53974066,2076.8,2075.2,0.08175709]
[1770506551292,0.53974066,2076.8,2075.3,0.09369033]
[1770506551489,0.53974066,2076.8,2075.5,0.09369033]
[1770506551992,0.53974066,2076.8,2075.6,0.09369033]
[1770506556489,0.53974066,2076.8,2075.7,0.09488906]
[1770506559494,0.53974066,2076.8,2075.6,0.24104]
[1770506564497,0.53974066,2076.8,2075.6,0.33034508]
[1770506564701,0.53974066,2076.8,2075.7,0.08930508]
[1770506566102,0.53974066,2076.8,2075.9,0.08431699]
[1770506568399,0.53974066,2076.8,2075.7,2.849662]
[1770506568598,0.53974066,2076.8,2075.6,4.29630086]
[1770506568599,0.53974066,2076.8,2075.6,2.849662]
[1770506568798,0.53974066,2076.8,2075.6,0.08613241]
[1770506569104,0.53974066,2076.8,2075.7,0.08613241]
[1770506569298,0.53974066,2076.8,2075.7,2.93579441]
[1770506569498,0.53974066,2076.8,2075.7,2.849662]
[1770506569703,0.53974066,2076.8,2075.6,2.849662]
[1770506570203,0.53974066,2076.8,2075.7,2.849662]
[1770506570800,0.53974066,2076.8,2075.8,2.9374424]
[1770506571199,0.53974066,2076.8,2076.0,2.849662]
[1770506572295,0.53974066,2076.8,2075.9,2.849662]
[1770506572502,0.53974066,2076.8,2075.8,2.849662]
[1770506572901,0.53974066,2076.8,2075.9,2.849662]
[1770506573304,0.53974066,2076.8,2075.8,2.849662]
[1770506573702,0.53974066,2076.8,2075.9,2.849662]
[1770506576109,0.53974066,2076.8,2076.0,2.849662]
[1770506578311,0.53974066,2076.8,2076.1,2.849662]
[1770506581013,0.53974066,2076.8,2075.8,4.29630086]
[1770506581213,0.53974066,2076.8,2075.7,4.29630086]
[1770506582312,0.53974066,2076.8,2075.7,4.87636849]
[1770506583507,0.53974066,2076.8,2075.8,0.58006763]
[1770506583711,0.53974066,2076.8,2076.0,0.58006763]
[1770506584111,0.53974066,2076.8,2076.1,0.58006763]
[1770506584414,0.00396788,2076.9,2076.1,4.87636849]
[1770506584616,0.00396788,2076.9,2076.2,0.57654311]
[1770506584819,0.00396788,2076.9,2076.3,0.57654311]
[1770506585011,0.0076294,2076.8,2076.3,0.57654311]
[1770506585210,0.00396788,2076.9,2076.3,0.57654311]
[1770506585411,0.01159728,2076.9,2076.3,0.57654311]
[1770506585918,0.01159728,2076.9,2076.2,0.00514457]
[1770506585919,0.00758129,2076.8,2076.2,0.00514457]
[1770506586515,0.00396788,2076.9,2076.3,0.57907548]
[1770506586715,0.00396788,2076.9,2076.5,0.57907548]
[1770506586911,0.00309759,2076.9,2076.3,4.29630086]
[1770506587111,0.00309759,2076.9,2076.2,0.00514457]
[1770506587313,0.00309759,2076.9,2076.2,0.58422005]
[1770506588620,0.00058104,2076.9,2076.3,0.58310368]
[1770506589220,42.21467698,2077.5,2076.4,0.58310368]
[1770506589415,42.21467698,2077.6,2076.5,0.58310368]
[1770506589609,42.21467698,2077.7,2076.5,0.58310368]
[1770506589809,42.21467698,2077.7,2076.6,0.58310368]
[1770506590318,0.0038586,2077.7,2076.6,4.87940454]
[1770506590516,0.0038586,2077.7,2076.7,0.58512852]
[1770506590915,0.0038586,2077.7,2076.9,0.58512852]
[1770506591512,0.0038586,2077.7,2077.0,0.58512852]
[1770506591716,0.0038586,2077.7,2076.8,0.58512852]
[1770506592820,0.0038586,2077.7,2076.6,0.58144677]
[1770506593922,0.0038586,2077.7,2076.6,4.87774763]
[1770506594119,0.0038586,2077.7,2076.8,0.58144677]
[1770506594322,0.0038586,2077.7,2076.9,0.59251054]
[1770506594523,0.0038586,2077.7,2076.9,4.8888114]
[1770506594719,0.0038586,2077.7,2077.0,0.59251054]
[1770506595826,42.21467698,2078.7,2077.1,0.59251054]
[1770506596227,52.30384084,2078.8,2077.1,0.59251054]
[1770506596726,10.0940992,2078.8,2077.6,0.59227334]
[1770506597621,0.00493534,2078.8,2077.7,0.59227334]
[1770506597826,0.00493534,2078.8,2077.8,0.59227334]
[1770506599624,42.21467698,2080.0,2077.9,0.5877061]
[1770506599822,42.21467698,2080.1,2078.0,0.5877061]
[1770506600027,0.00782994,2080.1,2078.1,0.5877061]
[1770506600721,0.00782994,2080.0,2078.1,0.5877061]
[1770506601321,0.00782994,2079.6,2077.9,0.57648992]
[1770506607529,0.0035937,2079.4,2077.7,0.58276085]
[1770506608423,0.00198631,2079.3,2077.7,0.58276085]
[1770506614828,0.00198631,2079.3,2077.7,4.87906171]
[1770506615036,0.00198631,2079.3,2078.0,0.57938508]
[1770506615732,0.00187085,2079.5,2078.1,0.57938508]
[1770506616130,0.24674869,2080.1,2078.1,0.82014508]
[1770506616334,0.00165115,2080.0,2078.2,0.57949493]
[1770506616636,0.00165115,2080.0,2078.3,0.57949493]
[1770506619134,0.00159665,2079.8,2078.3,0.57949493]
[1770506620240,0.00756283,2079.6,2078.3,0.57949493]
[1770506620438,4.83056283,2079.5,2078.3,0.57949493]
[1770506620828,0.00756283,2079.4,2077.9,0.57653909]
[1770506621834,0.24818283,2079.4,2077.9,0.57653909]
[1770506622139,0.00756283,2079.0,2077.9,0.57653909]
[1770506622839,0.01447988,2079.2,2077.9,4.87283995]
[1770506623036,0.01447988,2079.2,2078.0,0.57308057]
[1770506624438,0.03586294,2079.5,2078.1,0.56238904]
[1770506624939,0.03586294,2079.5,2078.2,0.56238904]
[1770506626337,0.03313532,2079.4,2078.2,0.56238904]
[1770506626644,0.03313532,2079.3,2078.2,0.56238904]
[1770506627237,42.2478123,2079.3,2078.2,0.56238904]
[1770506627539,0.03313532,2079.2,2078.2,0.56238904]
[1770506627841,0.03313532,2079.1,2078.2,0.56238904]
[1770506630241,42.2478123,2079.1,2078.0,0.53594789]
[1770506630440,0.54419707,2078.9,2078.0,0.53594789]
[1770506630645,0.54419707,2078.8,2077.8,0.53594789]
[1770506630845,0.54419707,2078.6,2077.8,0.53594789]
[1770506631046,0.54961235,2078.6,2077.8,0.53594789]
[1770506632449,42.76428933,2078.6,2077.7,0.00415281]